[Event "*** Titled Tuesday 3|2 Blitz"]
[Site "Chess.com"]
[Date "2015.10.06"]
[Round "8"]
[White "Tal-Baronfew"]
[Black "LyonBeast"]
[Result "1-0"]
[WhiteElo "2761"]
[BlackElo "2707"]
[TimeControl "180+2"]
[EndTime "18:43:32 PDT"]
[Termination "Tal-Baronfew won by resignation"]

1. e4 {[%clk 0:03:01.9]} 1... c6 {[%clk 0:02:54.4]} 2. d4 {[%clk 0:03:02.7]}
2... d5 {[%clk 0:02:54.2]} 3. Nd2 {[%clk 0:03:04]} 3... dxe4 {[%clk 0:02:54.2]}
4. Nxe4 {[%clk 0:03:05.5]} 4... Nd7 {[%clk 0:02:55.9]} 5. Ng5 {[%clk 0:03:03.9]}
5... e6 {[%clk 0:02:55.3]} 6. Bd3 {[%clk 0:02:57.2]} 6... Ngf6 {[%clk
0:02:56.4]} 7. N1f3 {[%clk 0:02:57.7]} 7... Bd6 {[%clk 0:02:57.5]} 8. Qe2 {[%clk
0:02:55.1]} 8... h6 {[%clk 0:02:58.8]} 9. Ne4 {[%clk 0:02:56.2]} 9... Nxe4
{[%clk 0:03:00]} 10. Qxe4 {[%clk 0:02:57.4]} 10... Qc7 {[%clk 0:03:01.7]} 11.
O-O {[%clk 0:02:57.4]} 11... b6 {[%clk 0:03:00.2]} 12. Qg4 {[%clk 0:02:58.2]}
12... Kf8 {[%clk 0:03:01.5]} 13. b3 {[%clk 0:02:58.1]} 13... Bb7 {[%clk
0:03:01.5]} 14. Re1 {[%clk 0:02:59.6]} 14... Nf6 {[%clk 0:03:02.7]} 15. Qh3
{[%clk 0:02:54.2]} 15... c5 {[%clk 0:02:59.4]} 16. Bb2 {[%clk 0:02:44.3]} 16...
Rd8 {[%clk 0:02:49.8]} 17. dxc5 {[%clk 0:02:42.1]} 17... Bxc5 {[%clk 0:02:48.1]}
18. Rad1 {[%clk 0:02:43.1]} 18... Bb4 {[%clk 0:02:39.8]} 19. Rf1 {[%clk
0:02:34.3]} 19... Be7 {[%clk 0:02:28.9]} 20. Ne5 {[%clk 0:02:25.7]} 20... Bd6
{[%clk 0:02:11.8]} 21. Rfe1 {[%clk 0:02:22.7]} 21... Kg8 {[%clk 0:02:10.7]} 22.
Bc4 {[%clk 0:02:08.5]} 22... Bd5 {[%clk 0:01:59.3]} 23. Bxd5 {[%clk 0:01:58.2]}
23... Nxd5 {[%clk 0:01:54.1]} 24. c4 {[%clk 0:01:59.3]} 24... Nf6 {[%clk
0:01:53]} 25. Qe3 {[%clk 0:01:47.1]} 25... Bc5 {[%clk 0:01:33.7]} 26. Rxd8+
{[%clk 0:01:47.4]} 26... Qxd8 {[%clk 0:01:35.6]} 27. Qe2 {[%clk 0:01:41.7]}
27... Qc7 {[%clk 0:01:25.6]} 28. h4 {[%clk 0:01:35.9]} 28... h5 {[%clk
0:01:23.4]} 29. Rd1 {[%clk 0:01:32.2]} 29... Be7 {[%clk 0:01:21.5]} 30. Qd3
{[%clk 0:01:29.1]} 30... a5 {[%clk 0:01:15.7]} 31. g3 {[%clk 0:01:28.4]} 31...
Qb7 {[%clk 0:01:08.7]} 32. Bc3 {[%clk 0:01:22.5]} 32... Bc5 {[%clk 0:01:04]} 33.
Nf3 {[%clk 0:01:23.3]} 33... Ne4 {[%clk 0:00:59.7]} 34. Qd8+ {[%clk 0:01:06.4]}
34... Kh7 {[%clk 0:00:59.7]} 35. Ng5+ {[%clk 0:01:07.6]} 35... Kg6 {[%clk
0:00:44.9]} 36. Qxh8 {[%clk 0:00:59.3]} 36... Bxf2+ {[%clk 0:00:41.1]} 37. Kf1
{[%clk 0:00:45.3]} 37... Nxc3 {[%clk 0:00:40.9]} 38. Qh7+ {[%clk 0:00:34.9]}
38... Kf6 {[%clk 0:00:41.8]} 39. Rd2 {[%clk 0:00:28.3]} 39... Be3 {[%clk
0:00:19.8]} 40. Rg2 {[%clk 0:00:19.5]} 40... b5 {[%clk 0:00:13.8]} 41. Qd3
{[%clk 0:00:17.3]} 41... Bxg5 {[%clk 0:00:10.2]} 42. Qxc3+ {[%clk 0:00:18.4]}
42... Kg6 {[%clk 0:00:11.2]} 43. hxg5 {[%clk 0:00:16]} 43... b4 {[%clk
0:00:13.1]} 44. Qd3+ {[%clk 0:00:16.4]} 44... Kxg5 {[%clk 0:00:14.6]} 45. Qe3+
{[%clk 0:00:16.5]} 45... Kg6 {[%clk 0:00:16]} 46. Kf2 {[%clk 0:00:15.9]} 46...
Qc6 {[%clk 0:00:17]} 47. Rh2 {[%clk 0:00:16.2]} 47... f5 {[%clk 0:00:18.3]} 48.
Kg1 {[%clk 0:00:15.6]} 48... a4 {[%clk 0:00:18.9]} 49. Re2 {[%clk 0:00:16.7]}
49... Kf7 {[%clk 0:00:19.4]} 50. Rd2 {[%clk 0:00:16.7]} 50... a3 {[%clk
0:00:20.1]} 51. Kh2 {[%clk 0:00:16.8]} 51... Kf6 {[%clk 0:00:20.3]} 52. Qd4+
{[%clk 0:00:17.3]} 52... Kg6 {[%clk 0:00:21.1]} 53. Qf4 {[%clk 0:00:18.2]} 53...
Qc5 {[%clk 0:00:20.9]} 54. Qd4 {[%clk 0:00:18.2]} 54... Qc6 {[%clk 0:00:21.7]}
55. Qe3 {[%clk 0:00:19.1]} 55... Kf6 {[%clk 0:00:22.3]} 56. c5 {[%clk
0:00:20.2]} 56... h4 {[%clk 0:00:16.1]} 57. Qd4+ {[%clk 0:00:20.9]} 1-0

[Event "*** Titled Tuesday 3|2 Blitz"]
[Site "Chess.com"]
[Date "2015.10.06"]
[Round "9"]
[White "Tal-Baronfew"]
[Black "gmjlh"]
[Result "0-1"]
[WhiteElo "2741"]
[BlackElo "2635"]
[TimeControl "180+2"]
[EndTime "18:46:37 PDT"]
[Termination "gmjlh won by resignation"]

1. e4 {[%clk 0:03:01.9]} 1... e5 {[%clk 0:03:00.9]} 2. Nf3 {[%clk 0:03:03]} 2...
Nc6 {[%clk 0:03:02.3]} 3. Bb5 {[%clk 0:03:03.8]} 3... Nf6 {[%clk 0:03:03.5]} 4.
O-O {[%clk 0:03:04.1]} 4... Nxe4 {[%clk 0:03:04.8]} 5. d4 {[%clk 0:03:05.7]}
5... Nd6 {[%clk 0:03:06]} 6. dxe5 {[%clk 0:03:07.4]} 6... Nxb5 {[%clk 0:03:07]}
7. a4 {[%clk 0:03:09.1]} 7... Nbd4 {[%clk 0:03:08.5]} 8. Nxd4 {[%clk 0:03:10.6]}
8... d5 {[%clk 0:03:09.7]} 9. Nxc6 {[%clk 0:03:11.1]} 9... bxc6 {[%clk
0:03:10.5]} 10. Qd3 {[%clk 0:03:12.7]} 10... Qd7 {[%clk 0:03:11.4]} 11. b3
{[%clk 0:03:01.8]} 11... Qf5 {[%clk 0:03:07.5]} 12. Qc3 {[%clk 0:02:56.3]} 12...
c5 {[%clk 0:03:08.3]} 13. Ba3 {[%clk 0:02:44]} 13... Qg6 {[%clk 0:02:41.6]} 14.
Bxc5 {[%clk 0:02:38]} 14... Bxc5 {[%clk 0:02:37.9]} 15. Qxc5 {[%clk 0:02:39.5]}
15... Bh3 {[%clk 0:02:36.2]} 16. Qxd5 {[%clk 0:02:40.2]} 16... O-O {[%clk
0:02:36.7]} 17. Qf3 {[%clk 0:02:32.7]} 17... Be6 {[%clk 0:02:31.2]} 18. Na3
{[%clk 0:02:32.4]} 18... Rad8 {[%clk 0:02:28.8]} 19. Rad1 {[%clk 0:02:33.4]}
19... Bg4 {[%clk 0:02:28.5]} 0-1

[Event "*** Titled Tuesday 3|2 Blitz"]
[Site "Chess.com"]
[Date "2015.10.06"]
[Round "9"]
[White "Penguininja"]
[Black "StellarChessPro"]
[Result "0-1"]
[WhiteElo "2146"]
[BlackElo "2251"]
[TimeControl "180+2"]
[EndTime "18:47:37 PDT"]
[Termination "StellarChessPro won by resignation"]

1. Nf3 {[%clk 0:02:46.2]} 1... d5 {[%clk 0:03:00.9]} 2. d4 {[%clk 0:02:47.1]}
2... c6 {[%clk 0:03:01.9]} 3. c4 {[%clk 0:02:48.3]} 3... Nf6 {[%clk 0:03:02.9]}
4. e3 {[%clk 0:02:47.8]} 4... e6 {[%clk 0:03:04]} 5. b3 {[%clk 0:02:44.5]} 5...
Ne4 {[%clk 0:03:04.9]} 6. Bd3 {[%clk 0:02:43.3]} 6... f5 {[%clk 0:03:04.6]} 7.
O-O {[%clk 0:02:41]} 7... Bd6 {[%clk 0:03:05.3]} 8. Ba3 {[%clk 0:02:41.9]} 8...
Bxa3 {[%clk 0:03:05.3]} 9. Nxa3 {[%clk 0:02:43.8]} 9... O-O {[%clk 0:03:06.8]}
10. b4 {[%clk 0:02:38.3]} 10... Qe7 {[%clk 0:03:05.5]} 11. c5 {[%clk 0:02:30.9]}
11... Nd7 {[%clk 0:03:06]} 12. Qc2 {[%clk 0:02:23.8]} 12... g5 {[%clk
0:03:06.9]} 13. b5 {[%clk 0:02:22.9]} 13... g4 {[%clk 0:03:07.9]} 14. Ne5 {[%clk
0:02:23.5]} 14... Nxe5 {[%clk 0:03:08.7]} 15. dxe5 {[%clk 0:02:24.6]} 15... Bd7
{[%clk 0:03:08.7]} 16. Rfc1 {[%clk 0:02:23]} 16... Rf7 {[%clk 0:03:05.4]} 17.
Bxe4 {[%clk 0:02:23.7]} 17... fxe4 {[%clk 0:03:05.9]} 18. bxc6 {[%clk
0:02:22.4]} 18... Bxc6 {[%clk 0:03:06.2]} 19. Rd1 {[%clk 0:02:11.9]} 19... Raf8
{[%clk 0:03:06.5]} 20. Rd2 {[%clk 0:02:12.6]} 20... Qg5 {[%clk 0:03:07.9]} 21.
Qb2 {[%clk 0:02:11.8]} 21... h5 {[%clk 0:03:08]} 22. Nc2 {[%clk 0:02:12.1]}
22... h4 {[%clk 0:03:07]} 23. Nd4 {[%clk 0:01:54.4]} 23... Qxe5 {[%clk
0:02:55.4]} 24. Nxc6 {[%clk 0:01:35.8]} 24... Qxb2 {[%clk 0:02:56.2]} 25. Rxb2
{[%clk 0:01:37.7]} 25... bxc6 {[%clk 0:02:56.9]} 26. Rab1 {[%clk 0:01:36.2]}
26... Kg7 {[%clk 0:02:56.8]} 27. g3 {[%clk 0:01:37]} 27... h3 {[%clk 0:02:56.4]}
28. Kf1 {[%clk 0:01:36.6]} 28... Kf6 {[%clk 0:02:57.5]} 29. Ke1 {[%clk 0:01:38]}
29... Ke5 {[%clk 0:02:58.7]} 30. Rb4 {[%clk 0:01:38.2]} 30... Rxf2 {[%clk
0:02:58.3]} 0-1

[Event "*** Titled Tuesday 3|2 Blitz"]
[Site "Chess.com"]
[Date "2015.10.06"]
[Round "9"]
[White "Bab3s"]
[Black "simplerXiao"]
[Result "1-0"]
[WhiteElo "2147"]
[BlackElo "2406"]
[TimeControl "180+2"]
[EndTime "18:49:26 PDT"]
[Termination "Bab3s won by resignation"]

1. e4 {[%clk 0:03:01.9]} 1... c5 {[%clk 0:03:00.2]} 2. c3 {[%clk 0:03:02.7]}
2... Nf6 {[%clk 0:02:59.3]} 3. e5 {[%clk 0:03:03.5]} 3... Nd5 {[%clk 0:03:00.6]}
4. d4 {[%clk 0:03:04.1]} 4... cxd4 {[%clk 0:02:58.2]} 5. Nf3 {[%clk 0:03:05.3]}
5... Nc6 {[%clk 0:02:58.7]} 6. cxd4 {[%clk 0:03:05.7]} 6... d6 {[%clk
0:02:59.3]} 7. Bc4 {[%clk 0:03:06.1]} 7... Nb6 {[%clk 0:03:00.1]} 8. Bb5 {[%clk
0:03:06.5]} 8... dxe5 {[%clk 0:03:01.2]} 9. Nxe5 {[%clk 0:03:07.4]} 9... Bd7
{[%clk 0:03:02.6]} 10. Nxd7 {[%clk 0:03:07.8]} 10... Qxd7 {[%clk 0:03:03.9]} 11.
O-O {[%clk 0:03:08.8]} 11... e6 {[%clk 0:03:05.2]} 12. Nc3 {[%clk 0:03:09.8]}
12... Be7 {[%clk 0:03:03.5]} 13. Qg4 {[%clk 0:03:05]} 13... O-O-O {[%clk
0:02:48.5]} 14. Bxc6 {[%clk 0:02:58.3]} 14... bxc6 {[%clk 0:02:42]} 15. Be3
{[%clk 0:02:54.2]} 15... f5 {[%clk 0:02:41.2]} 16. Qe2 {[%clk 0:02:26.7]} 16...
g5 {[%clk 0:02:37.1]} 17. Rfc1 {[%clk 0:02:09.4]} 17... f4 {[%clk 0:02:35.9]}
18. Bd2 {[%clk 0:02:10.1]} 18... Kb8 {[%clk 0:02:34.4]} 19. Ne4 {[%clk
0:02:05.1]} 19... Nd5 {[%clk 0:02:25.9]} 20. b4 {[%clk 0:01:58.5]} 20... g4
{[%clk 0:02:17.5]} 21. a4 {[%clk 0:01:50.5]} 21... f3 {[%clk 0:02:16.8]} 22. Qc4
{[%clk 0:01:49.1]} 22... Nb6 {[%clk 0:02:15.8]} 23. Qc2 {[%clk 0:01:43]} 23...
Qxd4 {[%clk 0:02:13.2]} 24. Bc3 {[%clk 0:01:37.4]} 24... Qc4 {[%clk 0:02:11]}
25. Be5+ {[%clk 0:01:30]} 25... Ka8 {[%clk 0:02:07.1]} 26. Qxc4 {[%clk
0:01:28.2]} 26... Nxc4 {[%clk 0:02:08.3]} 27. Bxh8 {[%clk 0:01:29.3]} 27... Nb6
{[%clk 0:01:48.5]} 28. Bf6 {[%clk 0:01:17.3]} 28... Bxf6 {[%clk 0:01:43.8]} 29.
Nxf6 {[%clk 0:01:19.2]} 29... fxg2 {[%clk 0:01:43.2]} 30. Nxg4 {[%clk
0:01:17.3]} 30... h5 {[%clk 0:01:43]} 31. Ne3 {[%clk 0:01:14.9]} 31... Rg8
{[%clk 0:01:42.5]} 32. Rxc6 {[%clk 0:01:12.2]} 1-0

[Event "*** Titled Tuesday 3|2 Blitz"]
[Site "Chess.com"]
[Date "2015.10.06"]
[Round "9"]
[White "lorcho"]
[Black "Dlugy"]
[Result "0-1"]
[WhiteElo "2574"]
[BlackElo "2562"]
[TimeControl "180+2"]
[EndTime "18:49:44 PDT"]
[Termination "Dlugy won by resignation"]

1. e4 {[%clk 0:02:56]} 1... d5 {[%clk 0:02:59.7]} 2. Nc3 {[%clk 0:02:55.5]} 2...
d4 {[%clk 0:02:59.9]} 3. Nce2 {[%clk 0:02:56.1]} 3... g6 {[%clk 0:03:01.4]} 4.
d3 {[%clk 0:02:57.6]} 4... c5 {[%clk 0:03:00.8]} 5. g3 {[%clk 0:02:58.1]} 5...
Nc6 {[%clk 0:03:01.9]} 6. Bg2 {[%clk 0:02:58.9]} 6... e5 {[%clk 0:03:03.1]} 7.
f4 {[%clk 0:02:59.3]} 7... Bg7 {[%clk 0:03:04.2]} 8. Nf3 {[%clk 0:03:00]} 8...
Nge7 {[%clk 0:03:05.2]} 9. O-O {[%clk 0:03:00.9]} 9... O-O {[%clk 0:03:06.4]}
10. g4 {[%clk 0:02:56.7]} 10... Bxg4 {[%clk 0:03:06.3]} 11. h3 {[%clk
0:02:56.5]} 11... Bxf3 {[%clk 0:03:05.8]} 12. Rxf3 {[%clk 0:02:56]} 12... exf4
{[%clk 0:03:05.9]} 13. Bxf4 {[%clk 0:02:54.6]} 13... Ne5 {[%clk 0:03:07.3]} 14.
Rf2 {[%clk 0:02:37]} 14... N7c6 {[%clk 0:03:07.8]} 15. Ng3 {[%clk 0:02:37.5]}
15... Qh4 {[%clk 0:03:06.2]} 16. Nf1 {[%clk 0:02:29.2]} 16... Rae8 {[%clk
0:03:03.6]} 17. Qd2 {[%clk 0:02:20.8]} 17... h6 {[%clk 0:03:02.1]} 18. Bg3
{[%clk 0:02:21.8]} 18... Qe7 {[%clk 0:03:01.9]} 19. Nh2 {[%clk 0:02:22.9]} 19...
b5 {[%clk 0:03:00.7]} 20. Raf1 {[%clk 0:02:24.2]} 20... c4 {[%clk 0:03:01.3]}
21. Bf4 {[%clk 0:02:23.7]} 21... Kh7 {[%clk 0:03:01.8]} 22. a3 {[%clk
0:02:23.4]} 22... a5 {[%clk 0:02:50.3]} 23. Bf3 {[%clk 0:02:24.1]} 23... a4
{[%clk 0:02:51.1]} 24. Bd1 {[%clk 0:02:21.2]} 24... Qc5 {[%clk 0:02:41.6]} 25.
Ng4 {[%clk 0:02:20.5]} 25... Nxg4 {[%clk 0:02:40.3]} 26. hxg4 {[%clk 0:02:20]}
26... c3 {[%clk 0:02:40.2]} 27. bxc3 {[%clk 0:02:02.8]} 27... dxc3 {[%clk
0:02:41]} 28. Be3 {[%clk 0:02:03.9]} 28... Qxa3 {[%clk 0:02:24.5]} 29. Qe1
{[%clk 0:02:04.6]} 29... Qe7 {[%clk 0:02:22.9]} 30. g5 {[%clk 0:01:55.9]} 30...
a3 {[%clk 0:02:17.3]} 31. gxh6 {[%clk 0:01:54.4]} 31... Be5 {[%clk 0:02:18.3]}
32. Rg2 {[%clk 0:01:52.3]} 32... a2 {[%clk 0:02:18]} 33. Bg4 {[%clk 0:01:53.1]}
33... b4 {[%clk 0:02:13.2]} 34. Qf2 {[%clk 0:01:50.7]} 34... Rd8 {[%clk
0:02:07.6]} 35. Bc5 {[%clk 0:01:48.1]} 35... Qxc5 {[%clk 0:02:08.1]} 36. Qxc5
{[%clk 0:01:48.3]} 36... Bd4+ {[%clk 0:02:09.3]} 37. Qxd4 {[%clk 0:01:49.6]}
37... Nxd4 {[%clk 0:02:10.4]} 38. Ra1 {[%clk 0:01:41.7]} 38... Ra8 {[%clk
0:02:10.8]} 39. Bd1 {[%clk 0:01:40.9]} 39... Kxh6 {[%clk 0:02:09.5]} 40. Kh2
{[%clk 0:01:29.6]} 40... Ra5 {[%clk 0:01:59.9]} 41. Kg3 {[%clk 0:01:30.9]} 41...
Rg5+ {[%clk 0:02:00.3]} 42. Kf2 {[%clk 0:01:32.1]} 42... Rxg2+ {[%clk 0:02:01]}
43. Kxg2 {[%clk 0:01:34]} 43... Ra8 {[%clk 0:02:00.6]} 44. Kf2 {[%clk
0:01:35.6]} 44... b3 {[%clk 0:02:01.5]} 45. cxb3 {[%clk 0:01:33.9]} 45... c2
{[%clk 0:02:02.7]} 0-1

[Event "*** Titled Tuesday 3|2 Blitz"]
[Site "Chess.com"]
[Date "2015.10.06"]
[Round "9"]
[White "Andnar"]
[Black "Viaje"]
[Result "0-1"]
[WhiteElo "2228"]
[BlackElo "2217"]
[TimeControl "180+2"]
[EndTime "18:51:10 PDT"]
[Termination "Viaje won by resignation"]

1. e4 {[%clk 0:03:01.9]} 1... c5 {[%clk 0:03:00.9]} 2. Nf3 {[%clk 0:03:02.5]}
2... d6 {[%clk 0:03:02.2]} 3. d4 {[%clk 0:03:03.7]} 3... cxd4 {[%clk 0:03:04.1]}
4. Nxd4 {[%clk 0:03:05.2]} 4... Nf6 {[%clk 0:03:05.6]} 5. Nc3 {[%clk 0:03:06.6]}
5... a6 {[%clk 0:03:07.1]} 6. Bg5 {[%clk 0:03:07.2]} 6... e6 {[%clk 0:03:08.1]}
7. f4 {[%clk 0:03:07.7]} 7... Qb6 {[%clk 0:03:09.1]} 8. Qd2 {[%clk 0:03:05]}
8... Qxb2 {[%clk 0:03:09.7]} 9. Rb1 {[%clk 0:03:05.8]} 9... Qa3 {[%clk 0:03:11]}
10. Nb3 {[%clk 0:02:54.1]} 10... Nbd7 {[%clk 0:03:06.7]} 11. Bd3 {[%clk
0:02:53.5]} 11... Be7 {[%clk 0:03:02.5]} 12. O-O {[%clk 0:02:51]} 12... Qb4
{[%clk 0:02:57.7]} 13. Kh1 {[%clk 0:02:32.5]} 13... Qb6 {[%clk 0:02:56.2]} 14.
Rbe1 {[%clk 0:01:59.8]} 14... Qc7 {[%clk 0:02:54.6]} 15. f5 {[%clk 0:01:53.5]}
15... O-O {[%clk 0:02:51.2]} 16. Nd4 {[%clk 0:01:49.4]} 16... Ne5 {[%clk
0:02:50.1]} 17. Nce2 {[%clk 0:01:32.5]} 17... Bd7 {[%clk 0:02:32.7]} 18. Nf4
{[%clk 0:01:29.6]} 18... Nxe4 {[%clk 0:02:31.5]} 19. Bxe4 {[%clk 0:01:28.3]}
19... Bxg5 {[%clk 0:02:31.6]} 20. fxe6 {[%clk 0:01:24.7]} 20... fxe6 {[%clk
0:02:31.1]} 21. h4 {[%clk 0:00:45.2]} 21... Bxf4 {[%clk 0:02:26.3]} 22. Rxf4
{[%clk 0:00:47.1]} 22... Rxf4 {[%clk 0:02:27.2]} 23. Qxf4 {[%clk 0:00:49]} 23...
Rf8 {[%clk 0:02:27.8]} 24. Qg3 {[%clk 0:00:50.5]} 24... Qc4 {[%clk 0:02:20.4]}
25. c3 {[%clk 0:00:47.7]} 25... Qxa2 {[%clk 0:02:08.1]} 26. Nc2 {[%clk
0:00:39.2]} 26... Qc4 {[%clk 0:01:56.7]} 27. Qe3 {[%clk 0:00:26.8]} 27... Rf1+
{[%clk 0:01:54.2]} 28. Rxf1 {[%clk 0:00:28.1]} 28... Qxf1+ {[%clk 0:01:54.9]}
29. Qg1 {[%clk 0:00:30]} 29... Qf4 {[%clk 0:01:33.9]} 30. Qd4 {[%clk 0:00:25.7]}
30... Qxh4+ {[%clk 0:01:31.7]} 31. Kg1 {[%clk 0:00:27]} 31... Bc6 {[%clk
0:01:11.1]} 32. Bxh7+ {[%clk 0:00:05.9]} 32... Qxh7 {[%clk 0:01:13]} 33. Qxd6
{[%clk 0:00:06.9]} 33... Qxc2 {[%clk 0:01:03.6]} 34. Qxe5 {[%clk 0:00:08.1]} 0-1

[Event "*** Titled Tuesday 3|2 Blitz"]
[Site "Chess.com"]
[Date "2015.10.06"]
[Round "9"]
[White "ilmago"]
[Black "josiwales"]
[Result "1-0"]
[WhiteElo "1899"]
[BlackElo "2026"]
[TimeControl "180+2"]
[EndTime "18:51:42 PDT"]
[Termination "ilmago won by resignation"]

1. e4 {[%clk 0:03:01.9]} 1... c5 {[%clk 0:02:58.5]} 2. Nf3 {[%clk 0:03:01.8]}
2... Nc6 {[%clk 0:02:59.3]} 3. d4 {[%clk 0:03:02.7]} 3... cxd4 {[%clk
0:03:01.2]} 4. Nxd4 {[%clk 0:03:03.9]} 4... g6 {[%clk 0:03:01.1]} 5. c4 {[%clk
0:03:03.6]} 5... Bg7 {[%clk 0:03:00.5]} 6. Be3 {[%clk 0:03:04.1]} 6... Nf6
{[%clk 0:03:01.9]} 7. Nc3 {[%clk 0:03:05.3]} 7... Ng4 {[%clk 0:03:01.1]} 8. Qxg4
{[%clk 0:03:05.4]} 8... Nxd4 {[%clk 0:03:02.1]} 9. Qd1 {[%clk 0:03:05.4]} 9...
Ne6 {[%clk 0:03:03.1]} 10. Rc1 {[%clk 0:03:04.5]} 10... O-O {[%clk 0:03:04]} 11.
Be2 {[%clk 0:03:02.4]} 11... d6 {[%clk 0:03:04.8]} 12. O-O {[%clk 0:03:02.6]}
12... b6 {[%clk 0:03:05]} 13. b3 {[%clk 0:03:00.7]} 13... Bb7 {[%clk 0:03:05.6]}
14. f3 {[%clk 0:03:00.5]} 14... Rc8 {[%clk 0:03:01.4]} 15. Nb5 {[%clk
0:02:57.5]} 15... a6 {[%clk 0:02:58.3]} 16. Nc3 {[%clk 0:02:55.5]} 16... f5
{[%clk 0:02:58.3]} 17. Nd5 {[%clk 0:02:51.8]} 17... Nc5 {[%clk 0:02:54.4]} 18.
exf5 {[%clk 0:02:48.5]} 18... gxf5 {[%clk 0:02:54.6]} 19. Bg5 {[%clk 0:02:42.4]}
19... Rf7 {[%clk 0:02:49.2]} 20. Re1 {[%clk 0:02:40.2]} 20... Ne6 {[%clk
0:02:38.8]} 21. Bh4 {[%clk 0:02:38.2]} 21... Kh8 {[%clk 0:02:26.1]} 22. Bd3
{[%clk 0:02:36]} 22... Bxd5 {[%clk 0:02:19]} 23. cxd5 {[%clk 0:02:31.8]} 23...
Nf4 {[%clk 0:02:17.1]} 24. Bxa6 {[%clk 0:02:27.6]} 24... Rxc1 {[%clk 0:02:12]}
25. Qxc1 {[%clk 0:02:27.2]} 25... Bd4+ {[%clk 0:01:50.2]} 26. Kh1 {[%clk
0:02:24.6]} 26... Ng6 {[%clk 0:01:48.4]} 27. Qc4 {[%clk 0:02:09.9]} 27... Be5
{[%clk 0:01:40.1]} 28. Bf2 {[%clk 0:02:08.6]} 28... Rf8 {[%clk 0:01:27.3]} 29.
Qc6 {[%clk 0:02:06.3]} 29... e6 {[%clk 0:01:23.8]} 30. dxe6 {[%clk 0:01:45.3]}
30... Qg5 {[%clk 0:01:16.1]} 31. Qxb6 {[%clk 0:01:31.6]} 31... Nh4 {[%clk
0:01:06.6]} 32. Bf1 {[%clk 0:01:15.3]} 32... Rg8 {[%clk 0:01:00.7]} 33. Bd4
{[%clk 0:00:39.8]} 33... Nxg2 {[%clk 0:00:53.2]} 34. Rxe5 {[%clk 0:00:39.2]}
34... dxe5 {[%clk 0:00:13.1]} 35. Bxe5+ {[%clk 0:00:39.5]} 1-0

[Event "*** Titled Tuesday 3|2 Blitz"]
[Site "Chess.com"]
[Date "2015.10.06"]
[Round "9"]
[White "spirals5"]
[Black "cheese111"]
[Result "1-0"]
[WhiteElo "2173"]
[BlackElo "2146"]
[TimeControl "180+2"]
[EndTime "18:52:20 PDT"]
[Termination "spirals5 won by resignation"]

1. e4 {[%clk 0:03:01.9]} 1... e5 {[%clk 0:03:00.3]} 2. Nf3 {[%clk 0:03:02.3]}
2... Nc6 {[%clk 0:03:01.5]} 3. Bb5 {[%clk 0:03:02.6]} 3... a6 {[%clk 0:03:03]}
4. Ba4 {[%clk 0:03:03.5]} 4... Nf6 {[%clk 0:03:04.5]} 5. d3 {[%clk 0:03:04.3]}
5... Be7 {[%clk 0:03:06.1]} 6. O-O {[%clk 0:03:05]} 6... d6 {[%clk 0:03:06.5]}
7. h3 {[%clk 0:03:02]} 7... O-O {[%clk 0:03:07.4]} 8. c4 {[%clk 0:03:02.6]} 8...
Be6 {[%clk 0:02:54.8]} 9. Be3 {[%clk 0:03:00.2]} 9... Nd7 {[%clk 0:02:55.6]} 10.
Nc3 {[%clk 0:02:56.5]} 10... f5 {[%clk 0:02:51.2]} 11. exf5 {[%clk 0:02:52.8]}
11... Bxf5 {[%clk 0:02:53.1]} 12. a3 {[%clk 0:02:52.5]} 12... Qe8 {[%clk
0:02:47]} 13. Nd5 {[%clk 0:02:48.5]} 13... Bd8 {[%clk 0:02:44.1]} 14. Bc2 {[%clk
0:02:38.4]} 14... Bg6 {[%clk 0:02:07.3]} 15. Nh2 {[%clk 0:02:30.9]} 15... Nf6
{[%clk 0:02:00.7]} 16. Nxf6+ {[%clk 0:02:22.6]} 16... Bxf6 {[%clk 0:02:02.6]}
17. Rc1 {[%clk 0:02:16.7]} 17... Bh5 {[%clk 0:01:50.8]} 18. Ng4 {[%clk
0:02:12.3]} 18... Bh4 {[%clk 0:01:35.4]} 19. d4 {[%clk 0:02:09.6]} 19... exd4
{[%clk 0:01:33]} 20. Bxd4 {[%clk 0:02:09.8]} 20... Nxd4 {[%clk 0:01:33.3]} 21.
Qxd4 {[%clk 0:02:09.9]} 21... Qf7 {[%clk 0:01:11.5]} 22. Nh6+ {[%clk 0:02:06.4]}
22... gxh6 {[%clk 0:01:08.4]} 23. Qxh4 {[%clk 0:02:06.4]} 23... Kh8 {[%clk
0:00:56.3]} 24. Qd4+ {[%clk 0:01:52.4]} 24... Qg7 {[%clk 0:00:45.8]} 25. Qxg7+
{[%clk 0:01:52.2]} 25... Kxg7 {[%clk 0:00:47.7]} 26. Be4 {[%clk 0:01:52.9]}
26... Bg6 {[%clk 0:00:39.8]} 27. Bf3 {[%clk 0:01:47.8]} 27... Rae8 {[%clk
0:00:19.1]} 28. b4 {[%clk 0:01:46.1]} 28... b6 {[%clk 0:00:18.2]} 29. Rfe1
{[%clk 0:01:44.1]} 29... Rxe1+ {[%clk 0:00:17.1]} 30. Rxe1 {[%clk 0:01:44.5]}
30... Re8 {[%clk 0:00:18.6]} 31. Rxe8 {[%clk 0:01:44.5]} 31... Bxe8 {[%clk
0:00:20.5]} 32. Be2 {[%clk 0:01:40.8]} 32... c5 {[%clk 0:00:18.3]} 33. bxc5
{[%clk 0:01:40.7]} 33... dxc5 {[%clk 0:00:18.6]} 34. f4 {[%clk 0:01:42.2]} 34...
Kf6 {[%clk 0:00:19.1]} 35. g4 {[%clk 0:01:42.4]} 35... Bg6 {[%clk 0:00:19.3]}
36. Kf2 {[%clk 0:01:41.1]} 36... h5 {[%clk 0:00:19.8]} 37. Ke3 {[%clk
0:01:41.1]} 37... hxg4 {[%clk 0:00:20.3]} 38. hxg4 {[%clk 0:01:41.9]} 38... Bb1
{[%clk 0:00:21.1]} 39. Bd3 {[%clk 0:01:34.5]} 39... Bxd3 {[%clk 0:00:18.5]} 40.
Kxd3 {[%clk 0:01:35.2]} 40... h6 {[%clk 0:00:18]} 41. a4 {[%clk 0:01:34.6]}
41... Ke7 {[%clk 0:00:15.3]} 42. Ke4 {[%clk 0:01:34.6]} 42... Ke6 {[%clk
0:00:16.2]} 43. g5 {[%clk 0:01:34.4]} 43... h5 {[%clk 0:00:14]} 44. f5+ {[%clk
0:01:35.1]} 44... Kf7 {[%clk 0:00:14.9]} 45. Kf4 {[%clk 0:01:32.2]} 45... Kg7
{[%clk 0:00:15]} 46. Kg3 {[%clk 0:01:23.6]} 46... b5 {[%clk 0:00:12.8]} 47. cxb5
{[%clk 0:01:24.1]} 47... axb5 {[%clk 0:00:13.4]} 48. axb5 {[%clk 0:01:16.6]}
48... c4 {[%clk 0:00:15.3]} 49. b6 {[%clk 0:01:17.8]} 49... c3 {[%clk
0:00:16.7]} 50. b7 {[%clk 0:01:19]} 50... c2 {[%clk 0:00:18.1]} 51. b8=Q {[%clk
0:01:20.1]} 51... c1=Q {[%clk 0:00:19.6]} 52. Qe5+ {[%clk 0:01:15.3]} 52... Kg8
{[%clk 0:00:19.3]} 53. Qe8+ {[%clk 0:01:12]} 53... Kg7 {[%clk 0:00:20]} 54. f6+
{[%clk 0:01:11.9]} 54... Kh7 {[%clk 0:00:20.9]} 55. Qf7+ {[%clk 0:01:11.5]} 1-0